Workbook

Sheet Enable Macros (hidden)
A1: asdf
B2: Boolean Functions
B3: If Function
B4: Lookup Functions
B5: Conditional Functions

Sheet Boolean Functions
B2: An infield fly in baseball is called to prevent the defense from recording an easy double play. When an infield fly occurs, the batter is automatically out once the ball is touched by a fielder or hits the ground and the baserunners must go back to their bases (though they may "tag up" if they wish). An infield fly occurs when the following conditions are met: (1) there is a force out at third base (this means that there are runners on first base and second base), (2) there are not two outs, and (3) the batter hits a catchable fly ball to the infield or the shallow outfield. The table below highlights 30 baseball scenarios. Complete the tasks below to determine if the umpire should declare an infield fly.
E9: Catchable Fly Ball Hit to…
B10: Scenario | C10: Runner on 1st | D10: Runner on 2nd | E10: Infield | F10: Shallow Outfield | G10: Outs | H10: Force @ Third | I10: Fly Ball | J10: Not 2 Outs | K10: Infield Fly
B11: 1 | C11: Yes | D11: No | E11: No | F11: Yes | G11: 0 | H11: =AND(C11="Yes",D11="Yes") -> FALSE | I11: =OR(E11="Yes",F11="Yes") -> TRUE | J11: =NOT(G11=2) -> TRUE | K11: =AND(H11=TRUE,I11=TRUE,J11=TRUE) -> FALSE
B12: 2 | C12: Yes | D12: No | E12: Yes | F12: No | G12: 0 | H12: =AND(C12="Yes",D12="Yes") -> FALSE | I12: =OR(E12="Yes",F12="Yes") -> TRUE | J12: =NOT(G12=2) -> TRUE | K12: =AND(H12=TRUE,I12=TRUE,J12=TRUE) -> FALSE
B13: 3 | C13: Yes | D13: No | E13: No | F13: Yes | G13: 0 | H13: FALSE | I13: TRUE | J13: TRUE | K13: FALSE
B14: 4 | C14: No | D14: Yes | E14: No | F14: No | G14: 2 | H14: FALSE | I14: FALSE | J14: FALSE | K14: FALSE
B15: 5 | C15: Yes | D15: Yes | E15: No | F15: No | G15: 0 | H15: TRUE | I15: FALSE | J15: TRUE | K15: FALSE
B16: 6 | C16: No | D16: No | E16: No | F16: Yes | G16: 1 | H16: FALSE | I16: TRUE | J16: TRUE | K16: FALSE
B17: 7 | C17: Yes | D17: Yes | E17: No | F17: No | G17: 1 | H17: TRUE | I17: FALSE | J17: TRUE | K17: FALSE
B18: 8 | C18: Yes | D18: Yes | E18: No | F18: Yes | G18: 2 | H18: TRUE | I18: TRUE | J18: FALSE | K18: FALSE
B19: 9 | C19: Yes | D19: Yes | E19: No | F19: No | G19: 1 | H19: TRUE | I19: FALSE | J19: TRUE | K19: FALSE
B20: 10 | C20: Yes | D20: Yes | E20: No | F20: Yes | G20: 1 | H20: TRUE | I20: TRUE | J20: TRUE | K20: TRUE
B21: 11 | C21: No | D21: No | E21: No | F21: No | G21: 0 | H21: FALSE | I21: FALSE | J21: TRUE | K21: FALSE
B22: 12 | C22: Yes | D22: Yes | E22: Yes | F22: No | G22: 2 | H22: TRUE | I22: TRUE | J22: FALSE | K22: FALSE
B23: 13 | C23: No | D23: Yes | E23: No | F23: Yes | G23: 0 | H23: FALSE | I23: TRUE | J23: TRUE | K23: FALSE
B24: 14 | C24: No | D24: Yes | E24: No | F24: No | G24: 2 | H24: FALSE | I24: FALSE | J24: FALSE | K24: FALSE
B25: 15 | C25: Yes | D25: Yes | E25: Yes | F25: No | G25: 1 | H25: TRUE | I25: TRUE | J25: TRUE | K25: TRUE
B26: 16 | C26: No | D26: No | E26: Yes | F26: No | G26: 0 | H26: FALSE | I26: TRUE | J26: TRUE | K26: FALSE
B27: 17 | C27: No | D27: Yes | E27: Yes | F27: No | G27: 0 | H27: FALSE | I27: TRUE | J27: TRUE | K27: FALSE
B28: 18 | C28: No | D28: No | E28: Yes | F28: No | G28: 0 | H28: FALSE | I28: TRUE | J28: TRUE | K28: FALSE
B29: 19 | C29: No | D29: No | E29: No | F29: No | G29: 0 | H29: FALSE | I29: FALSE | J29: TRUE | K29: FALSE
B30: 20 | C30: Yes | D30: Yes | E30: No | F30: Yes | G30: 0 | H30: TRUE | I30: TRUE | J30: TRUE | K30: TRUE
B31: 21 | C31: Yes | D31: Yes | E31: Yes | F31: No | G31: 0 | H31: TRUE | I31: TRUE | J31: TRUE | K31: TRUE
B32: 22 | C32: No | D32: No | E32: Yes | F32: No | G32: 1 | H32: FALSE | I32: TRUE | J32: TRUE | K32: FALSE
B33: 23 | C33: No | D33: Yes | E33: Yes | F33: No | G33: 1 | H33: FALSE | I33: TRUE | J33: TRUE | K33: FALSE
B34: 24 | C34: No | D34: Yes | E34: No | F34: Yes | G34: 0 | H34: FALSE | I34: TRUE | J34: TRUE | K34: FALSE
B35: 25 | C35: No | D35: No | E35: No | F35: Yes | G35: 0 | H35: FALSE | I35: TRUE | J35: TRUE | K35: FALSE
B36: 26 | C36: Yes | D36: No | E36: Yes | F36: No | G36: 1 | H36: FALSE | I36: TRUE | J36: TRUE | K36: FALSE
B37: 27 | C37: Yes | D37: Yes | E37: No | F37: Yes | G37: 0 | H37: TRUE | I37: TRUE | J37: TRUE | K37: TRUE
B38: 28 | C38: No | D38: No | E38: No | F38: Yes | G38: 1 | H38: FALSE | I38: TRUE | J38: TRUE | K38: FALSE
B39: 29 | C39: No | D39: No | E39: No | F39: Yes | G39: 2 | H39: FALSE | I39: TRUE | J39: FALSE | K39: FALSE
B40: 30 | C40: No | D40: No | E40: No | F40: Yes | G40: 2 | H40: FALSE | I40: TRUE | J40: FALSE | K40: FALSE

Sheet If Function
B2: Quickstove ships worldwide and this is but a sample of shipments to the Western United States. When multiple quantities of an item are in the same order, quantity discounts on that item are offered. Customers are charged sales tax on all shipments within Utah where Quickstove is located as well as on shipments to Oregon where they have another facility. Sales tax is not charged on shipments to other states.
A9: Sales Tax Rate | D9: Quantity Break Point | E9: Discount | H9: Total Sales | I9: =SUM(H15:H165) -> 7908.2765
A10: UT | B10: 0.05 | D10: 1 | E10: 0 | H10: Total Tax | I10: =SUM(I15:I165) -> 112.3099
A11: OR | B11: 0.06 | D11: 2 | E11: 0.02 | H11: Grand Total | I11: =SUM(J15:J165) -> 8020.5864
A12: All Others | B12: 0 | D12: 10 | E12: 0.05
A14: OrderID | B14: Ship To | C14: ProductID | D14: Product Name | E14: Unit Price | F14: Quantity | G14: Net Price | H14: Sale Amt | I14: Tax | J14: Total
A15: 1003 | B15: AZ | C15: 100 | D15: QuickStove | E15: 17.55 | F15: 4 | G15: =IF(F15>=$D$12,E15-(E15*$E$12),IF(F15>=$D$11,E15-(E15*$E$11),IF(F15<=$D$10,E15-(E15*$E$10),E15))) -> 17.199 | H15: =F15*G15 -> 68.796 | I15: =IF(B15=$A$10,H15*$B$10,IF(B15=$A$11,H15*$B$11,$B$12)) -> 0 | J15: =H15+I15 -> 68.796
A16: 1004 | B16: WA | C16: 100 | D16: QuickStove | E16: 17.55 | F16: 5 | G16: =IF(F16>=$D$12,E16-(E16*$E$12),IF(F16>=$D$11,E16-(E16*$E$11),IF(F16<=$D$10,E16-(E16*$E$10),E16))) -> 17.199 | H16: =F16*G16 -> 85.995 | I16: =IF(B16=$A$10,H16*$B$10,IF(B16=$A$11,H16*$B$11,$B$12)) -> 0 | J16: =H16+I16 -> 85.995
A17: 1007 | B17: NV | C17: 100 | D17: QuickStove | E17: 17.55 | F17: 7 | G17: 17.199 | H17: 120.393 | I17: 0 | J17: 120.393
A18: 1011 | B18: UT | C18: 100 | D18: QuickStove | E18: 17.55 | F18: 7 | G18: 17.199 | H18: 120.393 | I18: 6.01965 | J18: 126.41265
A19: 1027 | B19: CA | C19: 100 | D19: QuickStove | E19: 17.55 | F19: 1 | G19: 17.55 | H19: 17.55 | I19: 0 | J19: 17.55
A20: 1041 | B20: MT | C20: 102 | D20: Replacement Fuel Cells | E20: 4 | F20: 1 | G20: 4 | H20: 4 | I20: 0 | J20: 4
A21: 1042 | B21: CA | C21: 104 | D21: Quick Stove Can | E21: 34.99 | F21: 2 | G21: 34.2902 | H21: 68.5804 | I21: 0 | J21: 68.5804
A22: 1050 | B22: OR | C22: 104 | D22: Quick Stove Can | E22: 34.99 | F22: 8 | G22: 34.2902 | H22: 274.3216 | I22: 16.459296 | J22: 290.780896
A23: 1058 | B23: UT | C23: 104 | D23: Quick Stove Can | E23: 34.99 | F23: 8 | G23: 34.2902 | H23: 274.3216 | I23: 13.71608 | J23: 288.03768
A24: 1059 | B24: AZ | C24: 102 | D24: Replacement Fuel Cells | E24: 4 | F24: 4 | G24: 3.92 | H24: 15.68 | I24: 0 | J24: 15.68
A25: 1060 | B25: WA | C25: 104 | D25: Quick Stove Can | E25: 34.99 | F25: 2 | G25: 34.2902 | H25: 68.5804 | I25: 0 | J25: 68.5804
A26: 1062 | B26: UT | C26: 102 | D26: Replacement Fuel Cells | E26: 4 | F26: 16 | G26: 3.8 | H26: 60.8 | I26: 3.04 | J26: 63.84
A27: 1073 | B27: CO | C27: 104 | D27: Quick Stove Can | E27: 34.99 | F27: 1 | G27: 34.99 | H27: 34.99 | I27: 0 | J27: 34.99
A28: 1074 | B28: CO | C28: 102 | D28: Replacement Fuel Cells | E28: 4 | F28: 5 | G28: 3.92 | H28: 19.6 | I28: 0 | J28: 19.6
A29: 1088 | B29: WA | C29: 102 | D29: Replacement Fuel Cells | E29: 4 | F29: 1 | G29: 4 | H29: 4 | I29: 0 | J29: 4
A30: 1094 | B30: NV | C30: 102 | D30: Replacement Fuel Cells | E30: 4 | F30: 2 | G30: 3.92 | H30: 7.84 | I30: 0 | J30: 7.84
A31: 1109 | B31: HI | C31: 102 | D31: Replacement Fuel Cells | E31: 4 | F31: 2 | G31: 3.92 | H31: 7.84 | I31: 0 | J31: 7.84
A32: 1120 | B32: OR | C32: 102 | D32: Replacement Fuel Cells | E32: 4 | F32: 10 | G32: 3.8 | H32: 38 | I32: 2.28 | J32: 40.28
A33: 1255 | B33: OR | C33: 106 | D33: Stove In A Can | E33: 34.99 | F33: 1 | G33: 34.99 | H33: 34.99 | I33: 2.0994 | J33: 37.0894
A34: 1262 | B34: UT | C34: 106 | D34: Stove In A Can | E34: 34.99 | F34: 3 | G34: 34.2902 | H34: 102.8706 | I34: 5.14353 | J34: 108.01413
A35: 1265 | B35: WA | C35: 106 | D35: Stove In A Can | E35: 34.99 | F35: 1 | G35: 34.99 | H35: 34.99 | I35: 0 | J35: 34.99
A36: 1267 | B36: CA | C36: 106 | D36: Stove In A Can | E36: 34.99 | F36: 3 | G36: 34.2902 | H36: 102.8706 | I36: 0 | J36: 102.8706
A37: 1268 | B37: MT | C37: 106 | D37: Stove In A Can | E37: 34.99 | F37: 1 | G37: 34.99 | H37: 34.99 | I37: 0 | J37: 34.99
A38: 1364 | B38: AZ | C38: 106 | D38: Stove In A Can | E38: 34.99 | F38: 12 | G38: 33.2405 | H38: 398.886 | I38: 0 | J38: 398.886
A39: 1417 | B39: UT | C39: 108 | D39: QuickStove Fuel Disk | E39: 1.66 | F39: 24 | G39: 1.577 | H39: 37.848 | I39: 1.8924 | J39: 39.7404
A40: 1629 | B40: CA | C40: 107 | D40: SIAC Fuel Cell | E40: 5 | F40: 2 | G40: 4.9 | H40: 9.8 | I40: 0 | J40: 9.8
A41: 1635 | B41: CO | C41: 106 | D41: Stove In A Can | E41: 34.99 | F41: 2 | G41: 34.2902 | H41: 68.5804 | I41: 0 | J41: 68.5804
A42: 1661 | B42: AZ | C42: 107 | D42: SIAC Fuel Cell | E42: 5 | F42: 10 | G42: 4.75 | H42: 47.5 | I42: 0 | J42: 47.5
A43: 1666 | B43: OR | C43: 107 | D43: SIAC Fuel Cell | E43: 5 | F43: 4 | G43: 4.9 | H43: 19.6 | I43: 1.176 | J43: 20.776
A44: 1677 | B44: WA | C44: 108 | D44: QuickStove Fuel Disk | E44: 1.66 | F44: 20 | G44: 1.577 | H44: 31.54 | I44: 0 | J44: 31.54
A45: 1686 | B45: CA | C45: 101 | D45: QuickStove Can | E45: 19.95 | F45: 1 | G45: 19.95 | H45: 19.95 | I45: 0 | J45: 19.95
A46: 1701 | B46: CO | C46: 101 | D46: QuickStove Can | E46: 19.95 | F46: 1 | G46: 19.95 | H46: 19.95 | I46: 0 | J46: 19.95
A47: 1708 | B47: AZ | C47: 101 | D47: QuickStove Can | E47: 19.95 | F47: 1 | G47: 19.95 | H47: 19.95 | I47: 0 | J47: 19.95
A48: 1712 | B48: AZ | C48: 108 | D48: QuickStove Fuel Disk | E48: 1.66 | F48: 30 | G48: 1.577 | H48: 47.31 | I48: 0 | J48: 47.31
A49: 1718 | B49: OR | C49: 101 | D49: QuickStove Can | E49: 19.95 | F49: 2 | G49: 19.551 | H49: 39.102 | I49: 2.34612 | J49: 41.44812
A50: 1720 | B50: UT | C50: 101 | D50: QuickStove Can | E50: 19.95 | F50: 4 | G50: 19.551 | H50: 78.204 | I50: 3.9102 | J50: 82.1142
A51: 1725 | B51: WA | C51: 101 | D51: QuickStove Can | E51: 19.95 | F51: 4 | G51: 19.551 | H51: 78.204 | I51: 0 | J51: 78.204
A52: 1733 | B52: CA | C52: 110 | D52: Firebox Bundle | E52: 87.75 | F52: 2 | G52: 85.995 | H52: 171.99 | I52: 0 | J52: 171.99
A53: 1746 | B53: CO | C53: 110 | D53: Firebox Bundle | E53: 87.75 | F53: 1 | G53: 87.75 | H53: 87.75 | I53: 0 | J53: 87.75
A54: 1748 | B54: NV | C54: 101 | D54: QuickStove Can | E54: 19.95 | F54: 4 | G54: 19.551 | H54: 78.204 | I54: 0 | J54: 78.204
A55: 1776 | B55: MT | C55: 101 | D55: QuickStove Can | E55: 19.95 | F55: 4 | G55: 19.551 | H55: 78.204 | I55: 0 | J55: 78.204
A56: 1797 | B56: WA | C56: 114 | D56: Cube Stove + 2 Fuel Disks | E56: 24.95 | F56: 2 | G56: 24.451 | H56: 48.902 | I56: 0 | J56: 48.902
A57: 1814 | B57: AZ | C57: 114 | D57: Cube Stove + 2 Fuel Disks | E57: 24.95 | F57: 1 | G57: 24.95 | H57: 24.95 | I57: 0 | J57: 24.95
A58: 1834 | B58: CO | C58: 113 | D58: Firebox Stove w/ Fuel | E58: 49.95 | F58: 1 | G58: 49.95 | H58: 49.95 | I58: 0 | J58: 49.95
A59: 1835 | B59: CA | C59: 113 | D59: Firebox Stove w/ Fuel | E59: 49.95 | F59: 1 | G59: 49.95 | H59: 49.95 | I59: 0 | J59: 49.95
A60: 1839 | B60: CA | C60: 114 | D60: Cube Stove + 2 Fuel Disks | E60: 24.95 | F60: 2 | G60: 24.451 | H60: 48.902 | I60: 0 | J60: 48.902
A61: 1842 | B61: MT | C61: 108 | D61: QuickStove Fuel Disk | E61: 1.66 | F61: 12 | G61: 1.577 | H61: 18.924 | I61: 0 | J61: 18.924
A62: 1873 | B62: CA | C62: 109 | D62: Folding Campfire Stove | E62: 59.99 | F62: 1 | G62: 59.99 | H62: 59.99 | I62: 0 | J62: 59.99
A63: 1877 | B63: CA | C63: 121 | D63: Firebox Master Combo Kit | E63: 144.98 | F63: 1 | G63: 144.98 | H63: 144.98 | I63: 0 | J63: 144.98
A64: 1897 | B64: NV | C64: 118 | D64: Firebox Deluxe Combo Kit | E64: 89.99 | F64: 1 | G64: 89.99 | H64: 89.99 | I64: 0 | J64: 89.99
A65: 1913 | B65: AZ | C65: 118 | D65: Firebox Deluxe Combo Kit | E65: 89.99 | F65: 1 | G65: 89.99 | H65: 89.99 | I65: 0 | J65: 89.99
A66: 1923 | B66: WA | C66: 109 | D66: Folding Campfire Stove | E66: 59.99 | F66: 1 | G66: 59.99 | H66: 59.99 | I66: 0 | J66: 59.99
A67: 1946 | B67: WA | C67: 118 | D67: Firebox Deluxe Combo Kit | E67: 89.99 | F67: 1 | G67: 89.99 | H67: 89.99 | I67: 0 | J67: 89.99
A68: 1964 | B68: AZ | C68: 109 | D68: Folding Campfire Stove | E68: 59.99 | F68: 1 | G68: 59.99 | H68: 59.99 | I68: 0 | J68: 59.99
A69: 1979 | B69: HI | C69: 118 | D69: Firebox Deluxe Combo Kit | E69: 89.99 | F69: 1 | G69: 89.99 | H69: 89.99 | I69: 0 | J69: 89.99
A70: 1982 | B70: CA | C70: 118 | D70: Firebox Deluxe Combo Kit | E70: 89.99 | F70: 1 | G70: 89.99 | H70: 89.99 | I70: 0 | J70: 89.99
A71: 1990 | B71: CO | C71: 109 | D71: Folding Campfire Stove | E71: 59.99 | F71: 1 | G71: 59.99 | H71: 59.99 | I71: 0 | J71: 59.99
A72: 2000 | B72: WA | C72: 121 | D72: Firebox Master Combo Kit | E72: 144.98 | F72: 1 | G72: 144.98 | H72: 144.98 | I72: 0 | J72: 144.98
A73: 2031 | B73: CA | C73: 117 | D73: Firebox Upgrade Kit | E73: 34.98 | F73: 2 | G73: 34.2804 | H73: 68.5608 | I73: 0 | J73: 68.5608
A74: 2078 | B74: AZ | C74: 117 | D74: Firebox Upgrade Kit | E74: 34.98 | F74: 1 | G74: 34.98 | H74: 34.98 | I74: 0 | J74: 34.98
A75: 2093 | B75: AZ | C75: 121 | D75: Firebox Master Combo Kit | E75: 144.98 | F75: 1 | G75: 144.98 | H75: 144.98 | I75: 0 | J75: 144.98
A76: 2136 | B76: NV | C76: 109 | D76: Folding Campfire Stove | E76: 59.99 | F76: 1 | G76: 59.99 | H76: 59.99 | I76: 0 | J76: 59.99
A77: 2146 | B77: CO | C77: 118 | D77: Firebox Deluxe Combo Kit | E77: 89.99 | F77: 1 | G77: 89.99 | H77: 89.99 | I77: 0 | J77: 89.99
A78: 2168 | B78: NV | C78: 108 | D78: QuickStove Fuel Disk | E78: 1.66 | F78: 20 | G78: 1.577 | H78: 31.54 | I78: 0 | J78: 31.54
A79: 2198 | B79: UT | C79: 114 | D79: Cube Stove + 2 Fuel Disks | E79: 24.95 | F79: 1 | G79: 24.95 | H79: 24.95 | I79: 1.2475 | J79: 26.1975
A80: 2202 | B80: AZ | C80: 123 | D80: Cordura D-Ring Bag | E80: 15.99 | F80: 1 | G80: =IF(F80>=$D$12,E80-(E80*$E$12),IF(F80>=$D$11,E80-(E80*$E$11),IF(F80<=$D$10,E80-(E80*$E$10),E80))) -> 15.99 | H80: =F80*G80 -> 15.99 | I80: =IF(B80=$A$10,H80*$B$10,IF(B80=$A$11,H80*$B$11,$B$12)) -> 0 | J80: =H80+I80 -> 15.99
A81: 2217 | B81: WA | C81: 117 | D81: Firebox Upgrade Kit | E81: 34.98 | F81: 1 | G81: 34.98 | H81: 34.98 | I81: 0 | J81: 34.98
A82: 2218 | B82: OR | C82: 118 | D82: Firebox Deluxe Combo Kit | E82: 89.99 | F82: 1 | G82: 89.99 | H82: 89.99 | I82: 5.3994 | J82: 95.3894
A83: 2249 | B83: OR | C83: 117 | D83: Firebox Upgrade Kit | E83: 34.98 | F83: 1 | G83: 34.98 | H83: 34.98 | I83: 2.0988 | J83: 37.0788
A84: 2258 | B84: CA | C84: 123 | D84: Cordura D-Ring Bag | E84: 15.99 | F84: 1 | G84: 15.99 | H84: 15.99 | I84: 0 | J84: 15.99
A85: 2283 | B85: UT | C85: 118 | D85: Firebox Deluxe Combo Kit | E85: 89.99 | F85: 1 | G85: 89.99 | H85: 89.99 | I85: 4.4995 | J85: 94.4895
A86: 2319 | B86: WA | C86: 124 | D86: The Ugly Bag - HD VCP Bag | E86: 9.99 | F86: 1 | G86: 9.99 | H86: 9.99 | I86: 0 | J86: 9.99
A87: 2324 | B87: UT | C87: 121 | D87: Firebox Master Combo Kit | E87: 144.98 | F87: 1 | G87: 144.98 | H87: 144.98 | I87: 7.249 | J87: 152.229
A88: 2328 | B88: MT | C88: 118 | D88: Firebox Deluxe Combo Kit | E88: 89.99 | F88: 1 | G88: 89.99 | H88: 89.99 | I88: 0 | J88: 89.99
A89: 2331 | B89: UT | C89: 109 | D89: Folding Campfire Stove | E89: 59.99 | F89: 1 | G89: 59.99 | H89: 59.99 | I89: 2.9995 | J89: 62.9895
A90: 2353 | B90: CA | C90: 124 | D90: The Ugly Bag - HD VCP Bag | E90: 9.99 | F90: 2 | G90: 9.7902 | H90: 19.5804 | I90: 0 | J90: 19.5804
A91: 2358 | B91: HI | C91: 109 | D91: Folding Campfire Stove | E91: 59.99 | F91: 1 | G91: 59.99 | H91: 59.99 | I91: 0 | J91: 59.99
A92: 2386 | B92: CO | C92: 123 | D92: Cordura D-Ring Bag | E92: 15.99 | F92: 1 | G92: 15.99 | H92: 15.99 | I92: 0 | J92: 15.99
A93: 2393 | B93: CO | C93: 114 | D93: Cube Stove + 2 Fuel Disks | E93: 24.95 | F93: 1 | G93: 24.95 | H93: 24.95 | I93: 0 | J93: 24.95
A94: 2417 | B94: OR | C94: 109 | D94: Folding Campfire Stove | E94: 59.99 | F94: 1 | G94: 59.99 | H94: 59.99 | I94: 3.5994 | J94: 63.5894
A95: 2419 | B95: HI | C95: 123 | D95: Cordura D-Ring Bag | E95: 15.99 | F95: 1 | G95: 15.99 | H95: 15.99 | I95: 0 | J95: 15.99
A96: 2423 | B96: AZ | C96: 124 | D96: The Ugly Bag - HD VCP Bag | E96: 9.99 | F96: 3 | G96: 9.7902 | H96: 29.3706 | I96: 0 | J96: 29.3706
A97: 2439 | B97: UT | C97: 117 | D97: Firebox Upgrade Kit | E97: 34.98 | F97: 1 | G97: 34.98 | H97: 34.98 | I97: 1.749 | J97: 36.729
A98: 2513 | B98: AZ | C98: 125 | D98: 3 Months Fuel with Stove | E98: 189.99 | F98: 1 | G98: 189.99 | H98: 189.99 | I98: 0 | J98: 189.99
A99: 2521 | B99: CA | C99: 125 | D99: 3 Months Fuel with Stove | E99: 189.99 | F99: 1 | G99: 189.99 | H99: 189.99 | I99: 0 | J99: 189.99
A100: 2527 | B100: CO | C100: 117 | D100: Firebox Upgrade Kit | E100: 34.98 | F100: 1 | G100: 34.98 | H100: 34.98 | I100: 0 | J100: 34.98
A101: 2605 | B101: CO | C101: 125 | D101: 3 Months Fuel with Stove | E101: 189.99 | F101: 1 | G101: 189.99 | H101: 189.99 | I101: 0 | J101: 189.99
A102: 2644 | B102: WA | C102: 128 | D102: Heavy Duty Cordura D-Ring Bag | E102: 15.99 | F102: 1 | G102: 15.99 | H102: 15.99 | I102: 0 | J102: 15.99
A103: 2653 | B103: OR | C103: 129 | D103: Stainless Steel Cup Charger | E103: 149.99 | F103: 1 | G103: 149.99 | H103: 149.99 | I103: 8.9994 | J103: 158.9894
A104: 2714 | B104: NV | C104: 117 | D104: Firebox Upgrade Kit | E104: 34.98 | F104: 1 | G104: 34.98 | H104: 34.98 | I104: 0 | J104: 34.98
A105: 2726 | B105: CA | C105: 127 | D105: Stainless Steel Cooking Pot | E105: 19.99 | F105: 1 | G105: 19.99 | H105: 19.99 | I105: 0 | J105: 19.99
A106: 2779 | B106: MT | C106: 109 | D106: Folding Campfire Stove | E106: 59.99 | F106: 1 | G106: 59.99 | H106: 59.99 | I106: 0 | J106: 59.99
A107: 2829 | B107: HI | C107: 132 | D107: Adjustable Fire Grate | E107: 7.99 | F107: 1 | G107: 7.99 | H107: 7.99 | I107: 0 | J107: 7.99
A108: 2833 | B108: OR | C108: 132 | D108: Adjustable Fire Grate | E108: 7.99 | F108: 1 | G108: 7.99 | H108: 7.99 | I108: 0.4794 | J108: 8.4694
A109: 2837 | B109: AZ | C109: 127 | D109: Stainless Steel Cooking Pot | E109: 19.99 | F109: 1 | G109: 19.99 | H109: 19.99 | I109: 0 | J109: 19.99
A110: 2855 | B110: AZ | C110: 137 | D110: QuickStove Fire Starter | E110: 1.95 | F110: 2 | G110: 1.911 | H110: 3.822 | I110: 0 | J110: 3.822
A111: 2859 | B111: CA | C111: 132 | D111: Adjustable Fire Grate | E111: 7.99 | F111: 5 | G111: 7.8302 | H111: 39.151 | I111: 0 | J111: 39.151
A112: 2865 | B112: CA | C112: 137 | D112: QuickStove Fire Starter | E112: 1.95 | F112: 35 | G112: 1.8525 | H112: 64.8375 | I112: 0 | J112: 64.8375
A113: 2868 | B113: NV | C113: 132 | D113: Adjustable Fire Grate | E113: 7.99 | F113: 1 | G113: 7.99 | H113: 7.99 | I113: 0 | J113: 7.99
A114: 2887 | B114: WA | C114: 123 | D114: Cordura D-Ring Bag | E114: 15.99 | F114: 1 | G114: 15.99 | H114: 15.99 | I114: 0 | J114: 15.99
A115: 2889 | B115: OR | C115: 133 | D115: Extended Grill Plate | E115: 9.99 | F115: 1 | G115: 9.99 | H115: 9.99 | I115: 0.5994 | J115: 10.5894
A116: 2896 | B116: WA | C116: 132 | D116: Adjustable Fire Grate | E116: 7.99 | F116: 1 | G116: 7.99 | H116: 7.99 | I116: 0 | J116: 7.99
A117: 2903 | B117: WA | C117: 134 | D117: Set of 2 Fire Sticks | E117: 5.99 | F117: 1 | G117: 5.99 | H117: 5.99 | I117: 0 | J117: 5.99
A118: 2905 | B118: WA | C118: 139 | D118: Aluminum Matchbox | E118: 3.99 | F118: 1 | G118: 3.99 | H118: 3.99 | I118: 0 | J118: 3.99
A119: 2921 | B119: AZ | C119: 110 | D119: Firebox Bundle | E119: 87.75 | F119: 1 | G119: 87.75 | H119: 87.75 | I119: 0 | J119: 87.75
A120: 2928 | B120: MT | C120: 132 | D120: Adjustable Fire Grate | E120: 7.99 | F120: 1 | G120: 7.99 | H120: 7.99 | I120: 0 | J120: 7.99
A121: 2932 | B121: MT | C121: 150 | D121: Trangia Fuel Bottle - 0.3L | E121: 16.49 | F121: 1 | G121: 16.49 | H121: 16.49 | I121: 0 | J121: 16.49
A122: 2938 | B122: CA | C122: 138 | D122: Grill Plate | E122: 7.99 | F122: 1 | G122: 7.99 | H122: 7.99 | I122: 0 | J122: 7.99
A123: 2939 | B123: CO | C123: 132 | D123: Adjustable Fire Grate | E123: 7.99 | F123: 1 | G123: 7.99 | H123: 7.99 | I123: 0 | J123: 7.99
A124: 2979 | B124: OR | C124: 124 | D124: The Ugly Bag - HD VCP Bag | E124: 9.99 | F124: 1 | G124: 9.99 | H124: 9.99 | I124: 0.5994 | J124: 10.5894
A125: 2999 | B125: MT | C125: 133 | D125: Extended Grill Plate | E125: 9.99 | F125: 1 | G125: 9.99 | H125: 9.99 | I125: 0 | J125: 9.99
A126: 3005 | B126: MT | C126: 146 | D126: Olicamp Space Saver Cup | E126: 8.96 | F126: 1 | G126: 8.96 | H126: 8.96 | I126: 0 | J126: 8.96
A127: 3034 | B127: MT | C127: 121 | D127: Firebox Master Combo Kit | E127: 144.98 | F127: 1 | G127: 144.98 | H127: 144.98 | I127: 0 | J127: 144.98
A128: 3043 | B128: UT | C128: 123 | D128: Cordura D-Ring Bag | E128: 15.99 | F128: 1 | G128: 15.99 | H128: 15.99 | I128: 0.7995 | J128: 16.7895
A129: 3049 | B129: UT | C129: 132 | D129: Adjustable Fire Grate | E129: 7.99 | F129: 1 | G129: 7.99 | H129: 7.99 | I129: 0.3995 | J129: 8.3895
A130: 3069 | B130: CA | C130: 157 | D130: Nalgene Cantene 32 oz | E130: 11.49 | F130: 1 | G130: 11.49 | H130: 11.49 | I130: 0 | J130: 11.49
A131: 3079 | B131: CA | C131: 145 | D131: Cube Stove + 9 Fuel Disks | E131: 35.99 | F131: 1 | G131: 35.99 | H131: 35.99 | I131: 0 | J131: 35.99
A132: 3095 | B132: OR | C132: 134 | D132: Set of 2 Fire Sticks | E132: 5.99 | F132: 2 | G132: 5.8702 | H132: 11.7404 | I132: 0.704424 | J132: 12.444824
A133: 3111 | B133: AZ | C133: 136 | D133: Boil Plate | E133: 7.99 | F133: 1 | G133: 7.99 | H133: 7.99 | I133: 0 | J133: 7.99
A134: 3233 | B134: CA | C134: 144 | D134: Trangia Spirit Burner | E134: 14.99 | F134: 1 | G134: 14.99 | H134: 14.99 | I134: 0 | J134: 14.99
A135: 3246 | B135: WA | C135: 146 | D135: Olicamp Space Saver Cup | E135: 8.96 | F135: 1 | G135: 8.96 | H135: 8.96 | I135: 0 | J135: 8.96
A136: 3265 | B136: AZ | C136: 144 | D136: Trangia Spirit Burner | E136: 14.99 | F136: 1 | G136: 14.99 | H136: 14.99 | I136: 0 | J136: 14.99
A137: 3324 | B137: UT | C137: 124 | D137: The Ugly Bag - HD VCP Bag | E137: 9.99 | F137: 1 | G137: 9.99 | H137: 9.99 | I137: 0.4995 | J137: 10.4895
A138: 3330 | B138: WA | C138: 163 | D138: Klean Kanteen Wide 40 oz | E138: 25.16 | F138: 1 | G138: 25.16 | H138: 25.16 | I138: 0 | J138: 25.16
A139: 3345 | B139: CA | C139: 163 | D139: Klean Kanteen Wide 40 oz | E139: 25.16 | F139: 1 | G139: 25.16 | H139: 25.16 | I139: 0 | J139: 25.16
A140: 3352 | B140: CO | C140: 161 | D140: Olicamp Pot Lifter | E140: 4.95 | F140: 1 | G140: 4.95 | H140: 4.95 | I140: 0 | J140: 4.95
A141: 3357 | B141: CA | C141: 136 | D141: Boil Plate | E141: 7.99 | F141: 1 | G141: 7.99 | H141: 7.99 | I141: 0 | J141: 7.99
A142: 3360 | B142: CO | C142: 134 | D142: Set of 2 Fire Sticks | E142: 5.99 | F142: 1 | G142: 5.99 | H142: 5.99 | I142: 0 | J142: 5.99
A143: 3374 | B143: CA | C143: 168 | D143: Blue Bag | E143: 4.99 | F143: 1 | G143: 4.99 | H143: 4.99 | I143: 0 | J143: 4.99
A144: 3377 | B144: AZ | C144: 150 | D144: Trangia Fuel Bottle - 0.3L | E144: 16.49 | F144: 1 | G144: =IF(F144>=$D$12,E144-(E144*$E$12),IF(F144>=$D$11,E144-(E144*$E$11),IF(F144<=$D$10,E144-(E144*$E$10),E144))) -> 16.49 | H144: =F144*G144 -> 16.49 | I144: =IF(B144=$A$10,H144*$B$10,IF(B144=$A$11,H144*$B$11,$B$12)) -> 0 | J144: =H144+I144 -> 16.49
A145: 3381 | B145: OR | C145: 150 | D145: Trangia Fuel Bottle - 0.3L | E145: 16.49 | F145: 1 | G145: 16.49 | H145: 16.49 | I145: 0.9894 | J145: 17.4794
A146: 3394 | B146: UT | C146: 129 | D146: Stainless Steel Cup Charger | E146: 149.99 | F146: 1 | G146: 149.99 | H146: 149.99 | I146: 7.4995 | J146: 157.4895
A147: 3403 | B147: CO | C147: 128 | D147: Heavy Duty Cordura D-Ring Bag | E147: 15.99 | F147: 2 | G147: 15.6702 | H147: 31.3404 | I147: 0 | J147: 31.3404
A148: 3404 | B148: CA | C148: 146 | D148: Olicamp Space Saver Cup | E148: 8.96 | F148: 1 | G148: 8.96 | H148: 8.96 | I148: 0 | J148: 8.96
A149: 3429 | B149: OR | C149: 171 | D149: Power Bank with Flashlight | E149: 14.99 | F149: 1 | G149: 14.99 | H149: 14.99 | I149: 0.8994 | J149: 15.8894
A150: 3430 | B150: HI | C150: 128 | D150: Heavy Duty Cordura D-Ring Bag | E150: 15.99 | F150: 2 | G150: 15.6702 | H150: 31.3404 | I150: 0 | J150: 31.3404
A151: 3441 | B151: HI | C151: 121 | D151: Firebox Master Combo Kit | E151: 144.98 | F151: 1 | G151: 144.98 | H151: 144.98 | I151: 0 | J151: 144.98
A152: 3446 | B152: HI | C152: 133 | D152: Extended Grill Plate | E152: 9.99 | F152: 1 | G152: 9.99 | H152: 9.99 | I152: 0 | J152: 9.99
A153: 3464 | B153: OR | C153: 127 | D153: Stainless Steel Cooking Pot | E153: 19.99 | F153: 1 | G153: 19.99 | H153: 19.99 | I153: 1.1994 | J153: 21.1894
A154: 3485 | B154: AZ | C154: 130 | D154: Emergency Cook Kit | E154: 25 | F154: 1 | G154: 25 | H154: 25 | I154: 0 | J154: 25
A155: 3539 | B155: CA | C155: 139 | D155: Aluminum Matchbox | E155: 3.99 | F155: 2 | G155: 3.9102 | H155: 7.8204 | I155: 0 | J155: 7.8204
A156: 3546 | B156: UT | C156: 128 | D156: Heavy Duty Cordura D-Ring Bag | E156: 15.99 | F156: 1 | G156: 15.99 | H156: 15.99 | I156: 0.7995 | J156: 16.7895
A157: 3554 | B157: HI | C157: 134 | D157: Set of 2 Fire Sticks | E157: 5.99 | F157: 1 | G157: 5.99 | H157: 5.99 | I157: 0 | J157: 5.99
A158: 3585 | B158: NV | C158: 127 | D158: Stainless Steel Cooking Pot | E158: 19.99 | F158: 1 | G158: 19.99 | H158: 19.99 | I158: 0 | J158: 19.99
A159: 3616 | B159: CA | C159: 175 | D159: Folding Firebox Nano | E159: 29.99 | F159: 1 | G159: 29.99 | H159: 29.99 | I159: 0 | J159: 29.99
A160: 3618 | B160: OR | C160: 143 | D160: Trangia Fuel Bottle - 0.5L | E160: 15.29 | F160: 1 | G160: 15.29 | H160: 15.29 | I160: 0.9174 | J160: 16.2074
A161: 3653 | B161: CA | C161: 120 | D161: Master Combo Kit | E161: 144.98 | F161: 1 | G161: 144.98 | H161: 144.98 | I161: 0 | J161: 144.98
A162: 3663 | B162: CA | C162: 154 | D162: Deluxe Combo Kit | E162: 89.99 | F162: 1 | G162: 89.99 | H162: 89.99 | I162: 0 | J162: 89.99
A163: 3702 | B163: CA | C163: 171 | D163: Power Bank with Flashlight | E163: 14.99 | F163: 1 | G163: 14.99 | H163: 14.99 | I163: 0 | J163: 14.99
A164: 3718 | B164: CA | C164: 176 | D164: Firebox Accessory Kit | E164: 31.48 | F164: 1 | G164: 31.48 | H164: 31.48 | I164: 0 | J164: 31.48
A165: 3800 | B165: MT | C165: 168 | D165: Blue Bag | E165: 4.99 | F165: 1 | G165: 4.99 | H165: 4.99 | I165: 0 | J165: 4.99

Sheet Lookup Functions
A2: When shipping products two major costs are incurred: the cost of insuring the item and the actual freight cost. Insurance is dependent on the value of the shipment Quickstove has an agreement with shippers for a fixed rate that is determined by destination state and service level (regular , express or overnite).
E4: Freight Cost
F5: AZ | G5: WA | H5: NV | I5: UT | J5: CA | K5: MT | L5: OR | M5: CO | N5: HI
E6: Regular | F6: 5 | G6: 6 | H6: 5 | I6: 3 | J6: 5 | K6: 6 | L6: 6 | M6: 5 | N6: 8
E7: Express | F7: 7.6 | G7: 8.4 | H7: 7.6 | I7: 4.7 | J7: 7.6 | K7: 8.4 | L7: 8.4 | M7: 7.6 | N7: 13.5
E8: Overnite | F8: 11.6 | G8: 13.7 | H8: 11.6 | I8: 7.8 | J8: 11.6 | K8: 13.7 | L8: 13.7 | M8: 11.6 | N8: 17.1
A10: OrderID | B10: Ship To | C10: ProductID | D10: Product Name | E10: Value | F10: Shipping Class | G10: Insurance Cost | H10: Freight Cost | I10: Shipping Total | K10: Insurance Cost
A11: 1003 | B11: AZ | C11: 100 | D11: QuickStove | E11: 68.796 | F11: Express | G11: =VLOOKUP(E11,$K$11:$L$18,2) -> 2.5 | H11: =HLOOKUP(B11,$E$5:$N$8,IF(F11=$E$6,2,IF(F11=$E$7,3,4)),FALSE) -> 7.6 | I11: =G11+H11 -> 10.1 | K11: Shipment Value | L11: Insurance Cost
A12: 1004 | B12: WA | C12: 100 | D12: QuickStove | E12: 85.995 | F12: Express | G12: =VLOOKUP(E12,$K$11:$L$18,2) -> 2.5 | H12: =HLOOKUP(B12,$E$5:$N$8,IF(F12=$E$6,2,IF(F12=$E$7,3,4)),FALSE) -> 8.4 | I12: =G12+H12 -> 10.9 | K12: 0 | L12: 0.5
A13: 1007 | B13: NV | C13: 100 | D13: QuickStove | E13: 120.393 | F13: Regular | G13: 3 | H13: 5 | I13: 8 | K13: 10 | L13: 1
A14: 1011 | B14: UT | C14: 100 | D14: QuickStove | E14: 120.393 | F14: Express | G14: 3 | H14: 4.7 | I14: 7.7 | K14: 30 | L14: 2
A15: 1027 | B15: CA | C15: 100 | D15: QuickStove | E15: 17.55 | F15: Overnite | G15: 1 | H15: 11.6 | I15: 12.6 | K15: 50 | L15: 2.5
A16: 1041 | B16: MT | C16: 102 | D16: Replacement Fuel Cells | E16: 4 | F16: Overnite | G16: 0.5 | H16: 13.7 | I16: 14.2 | K16: 100 | L16: 3
A17: 1042 | B17: CA | C17: 104 | D17: Quick Stove Can | E17: 69.98 | F17: Overnite | G17: 2.5 | H17: 11.6 | I17: 14.1 | K17: 200 | L17: 4
A18: 1050 | B18: OR | C18: 104 | D18: Quick Stove Can | E18: 274.3216 | F18: Overnite | G18: 4 | H18: 13.7 | I18: 17.7 | K18: 400 | L18: 5
A19: 1058 | B19: UT | C19: 104 | D19: Quick Stove Can | E19: 274.3216 | F19: Express | G19: 4 | H19: 4.7 | I19: 8.7
A20: 1059 | B20: AZ | C20: 102 | D20: Replacement Fuel Cells | E20: 15.68 | F20: Regular | G20: 1 | H20: 5 | I20: 6
A21: 1060 | B21: WA | C21: 104 | D21: Quick Stove Can | E21: 69.98 | F21: Overnite | G21: 2.5 | H21: 13.7 | I21: 16.2
A22: 1062 | B22: UT | C22: 102 | D22: Replacement Fuel Cells | E22: 60.8 | F22: Regular | G22: 2.5 | H22: 3 | I22: 5.5
A23: 1073 | B23: CO | C23: 104 | D23: Quick Stove Can | E23: 34.99 | F23: Overnite | G23: 2 | H23: 11.6 | I23: 13.6
A24: 1074 | B24: CO | C24: 102 | D24: Replacement Fuel Cells | E24: 19.6 | F24: Overnite | G24: 1 | H24: 11.6 | I24: 12.6
A25: 1088 | B25: WA | C25: 102 | D25: Replacement Fuel Cells | E25: 4 | F25: Overnite | G25: 0.5 | H25: 13.7 | I25: 14.2
A26: 1094 | B26: NV | C26: 102 | D26: Replacement Fuel Cells | E26: 8 | F26: Express | G26: 0.5 | H26: 7.6 | I26: 8.1
A27: 1109 | B27: HI | C27: 102 | D27: Replacement Fuel Cells | E27: 8 | F27: Express | G27: 0.5 | H27: 13.5 | I27: 14
A28: 1120 | B28: OR | C28: 102 | D28: Replacement Fuel Cells | E28: 38 | F28: Express | G28: 2 | H28: 8.4 | I28: 10.4
A29: 1255 | B29: OR | C29: 106 | D29: Stove In A Can | E29: 34.99 | F29: Overnite | G29: 2 | H29: 13.7 | I29: 15.7
A30: 1262 | B30: UT | C30: 106 | D30: Stove In A Can | E30: 102.8706 | F30: Regular | G30: 3 | H30: 3 | I30: 6
A31: 1265 | B31: WA | C31: 106 | D31: Stove In A Can | E31: 34.99 | F31: Express | G31: 2 | H31: 8.4 | I31: 10.4
A32: 1267 | B32: CA | C32: 106 | D32: Stove In A Can | E32: 102.8706 | F32: Overnite | G32: 3 | H32: 11.6 | I32: 14.6
A33: 1268 | B33: MT | C33: 106 | D33: Stove In A Can | E33: 34.99 | F33: Regular | G33: 2 | H33: 6 | I33: 8
A34: 1364 | B34: AZ | C34: 106 | D34: Stove In A Can | E34: 398.886 | F34: Regular | G34: 4 | H34: 5 | I34: 9
A35: 1417 | B35: UT | C35: 108 | D35: QuickStove Fuel Disk | E35: 37.848 | F35: Overnite | G35: 2 | H35: 7.8 | I35: 9.8
A36: 1629 | B36: CA | C36: 107 | D36: SIAC Fuel Cell | E36: 10 | F36: Express | G36: 1 | H36: 7.6 | I36: 8.6
A37: 1635 | B37: CO | C37: 106 | D37: Stove In A Can | E37: 69.98 | F37: Express | G37: 2.5 | H37: 7.6 | I37: 10.1
A38: 1661 | B38: AZ | C38: 107 | D38: SIAC Fuel Cell | E38: 47.5 | F38: Regular | G38: 2 | H38: 5 | I38: 7
A39: 1666 | B39: OR | C39: 107 | D39: SIAC Fuel Cell | E39: 19.6 | F39: Express | G39: 1 | H39: 8.4 | I39: 9.4
A40: 1677 | B40: WA | C40: 108 | D40: QuickStove Fuel Disk | E40: 31.54 | F40: Express | G40: 2 | H40: 8.4 | I40: 10.4
A41: 1686 | B41: CA | C41: 101 | D41: QuickStove Can | E41: 19.95 | F41: Overnite | G41: 1 | H41: 11.6 | I41: 12.6
A42: 1701 | B42: CO | C42: 101 | D42: QuickStove Can | E42: 19.95 | F42: Overnite | G42: 1 | H42: 11.6 | I42: 12.6
A43: 1708 | B43: AZ | C43: 101 | D43: QuickStove Can | E43: 19.95 | F43: Overnite | G43: 1 | H43: 11.6 | I43: 12.6
A44: 1712 | B44: AZ | C44: 108 | D44: QuickStove Fuel Disk | E44: 47.31 | F44: Express | G44: 2 | H44: 7.6 | I44: 9.6
A45: 1718 | B45: OR | C45: 101 | D45: QuickStove Can | E45: 39.9 | F45: Overnite | G45: 2 | H45: 13.7 | I45: 15.7
A46: 1720 | B46: UT | C46: 101 | D46: QuickStove Can | E46: 78.204 | F46: Overnite | G46: 2.5 | H46: 7.8 | I46: 10.3
A47: 1725 | B47: WA | C47: 101 | D47: QuickStove Can | E47: 78.204 | F47: Express | G47: 2.5 | H47: 8.4 | I47: 10.9
A48: 1733 | B48: CA | C48: 110 | D48: Firebox Bundle | E48: 175.5 | F48: Regular | G48: 3 | H48: 5 | I48: 8
A49: 1746 | B49: CO | C49: 110 | D49: Firebox Bundle | E49: 87.75 | F49: Express | G49: 2.5 | H49: 7.6 | I49: 10.1
A50: 1748 | B50: NV | C50: 101 | D50: QuickStove Can | E50: 78.204 | F50: Overnite | G50: 2.5 | H50: 11.6 | I50: 14.1
A51: 1776 | B51: MT | C51: 101 | D51: QuickStove Can | E51: 78.204 | F51: Overnite | G51: 2.5 | H51: 13.7 | I51: 16.2
A52: 1797 | B52: WA | C52: 114 | D52: Cube Stove + 2 Fuel Disks | E52: 49.9 | F52: Express | G52: 2 | H52: 8.4 | I52: 10.4
A53: 1814 | B53: AZ | C53: 114 | D53: Cube Stove + 2 Fuel Disks | E53: 24.95 | F53: Regular | G53: 1 | H53: 5 | I53: 6
A54: 1834 | B54: CO | C54: 113 | D54: Firebox Stove w/ Fuel | E54: 49.95 | F54: Overnite | G54: 2 | H54: 11.6 | I54: 13.6
A55: 1835 | B55: CA | C55: 113 | D55: Firebox Stove w/ Fuel | E55: 49.95 | F55: Overnite | G55: 2 | H55: 11.6 | I55: 13.6
A56: 1839 | B56: CA | C56: 114 | D56: Cube Stove + 2 Fuel Disks | E56: 49.9 | F56: Express | G56: 2 | H56: 7.6 | I56: 9.6
A57: 1842 | B57: MT | C57: 108 | D57: QuickStove Fuel Disk | E57: 18.924 | F57: Overnite | G57: 1 | H57: 13.7 | I57: 14.7
A58: 1873 | B58: CA | C58: 109 | D58: Folding Campfire Stove | E58: 59.99 | F58: Regular | G58: 2.5 | H58: 5 | I58: 7.5
A59: 1877 | B59: CA | C59: 121 | D59: Firebox Master Combo Kit | E59: 144.98 | F59: Overnite | G59: 3 | H59: 11.6 | I59: 14.6
A60: 1897 | B60: NV | C60: 118 | D60: Firebox Deluxe Combo Kit | E60: 89.99 | F60: Regular | G60: 2.5 | H60: 5 | I60: 7.5
A61: 1913 | B61: AZ | C61: 118 | D61: Firebox Deluxe Combo Kit | E61: 89.99 | F61: Regular | G61: 2.5 | H61: 5 | I61: 7.5
A62: 1923 | B62: WA | C62: 109 | D62: Folding Campfire Stove | E62: 59.99 | F62: Regular | G62: 2.5 | H62: 6 | I62: 8.5
A63: 1946 | B63: WA | C63: 118 | D63: Firebox Deluxe Combo Kit | E63: 89.99 | F63: Overnite | G63: 2.5 | H63: 13.7 | I63: 16.2
A64: 1964 | B64: AZ | C64: 109 | D64: Folding Campfire Stove | E64: 59.99 | F64: Express | G64: 2.5 | H64: 7.6 | I64: 10.1
A65: 1979 | B65: HI | C65: 118 | D65: Firebox Deluxe Combo Kit | E65: 89.99 | F65: Overnite | G65: 2.5 | H65: 17.1 | I65: 19.6
A66: 1982 | B66: CA | C66: 118 | D66: Firebox Deluxe Combo Kit | E66: 89.99 | F66: Overnite | G66: 2.5 | H66: 11.6 | I66: 14.1
A67: 1990 | B67: CO | C67: 109 | D67: Folding Campfire Stove | E67: 59.99 | F67: Regular | G67: 2.5 | H67: 5 | I67: 7.5
A68: 2000 | B68: WA | C68: 121 | D68: Firebox Master Combo Kit | E68: 144.98 | F68: Express | G68: 3 | H68: 8.4 | I68: 11.4
A69: 2031 | B69: CA | C69: 117 | D69: Firebox Upgrade Kit | E69: 69.96 | F69: Overnite | G69: 2.5 | H69: 11.6 | I69: 14.1
A70: 2078 | B70: AZ | C70: 117 | D70: Firebox Upgrade Kit | E70: 34.98 | F70: Overnite | G70: 2 | H70: 11.6 | I70: 13.6
A71: 2093 | B71: AZ | C71: 121 | D71: Firebox Master Combo Kit | E71: 144.98 | F71: Overnite | G71: 3 | H71: 11.6 | I71: 14.6
A72: 2136 | B72: NV | C72: 109 | D72: Folding Campfire Stove | E72: 59.99 | F72: Overnite | G72: 2.5 | H72: 11.6 | I72: 14.1
A73: 2146 | B73: CO | C73: 118 | D73: Firebox Deluxe Combo Kit | E73: 89.99 | F73: Regular | G73: 2.5 | H73: 5 | I73: 7.5
A74: 2168 | B74: NV | C74: 108 | D74: QuickStove Fuel Disk | E74: 31.54 | F74: Regular | G74: 2 | H74: 5 | I74: 7
A75: 2198 | B75: UT | C75: 114 | D75: Cube Stove + 2 Fuel Disks | E75: 24.95 | F75: Regular | G75: 1 | H75: 3 | I75: 4
A76: 2202 | B76: AZ | C76: 123 | D76: Cordura D-Ring Bag | E76: 15.99 | F76: Regular | G76: =VLOOKUP(E76,$K$11:$L$18,2) -> 1 | H76: =HLOOKUP(B76,$E$5:$N$8,IF(F76=$E$6,2,IF(F76=$E$7,3,4)),FALSE) -> 5 | I76: =G76+H76 -> 6
A77: 2217 | B77: WA | C77: 117 | D77: Firebox Upgrade Kit | E77: 34.98 | F77: Regular | G77: 2 | H77: 6 | I77: 8
A78: 2218 | B78: OR | C78: 118 | D78: Firebox Deluxe Combo Kit | E78: 89.99 | F78: Overnite | G78: 2.5 | H78: 13.7 | I78: 16.2
A79: 2249 | B79: OR | C79: 117 | D79: Firebox Upgrade Kit | E79: 34.98 | F79: Regular | G79: 2 | H79: 6 | I79: 8
A80: 2258 | B80: CA | C80: 123 | D80: Cordura D-Ring Bag | E80: 15.99 | F80: Regular | G80: 1 | H80: 5 | I80: 6
A81: 2283 | B81: UT | C81: 118 | D81: Firebox Deluxe Combo Kit | E81: 89.99 | F81: Overnite | G81: 2.5 | H81: 7.8 | I81: 10.3
A82: 2319 | B82: WA | C82: 124 | D82: The Ugly Bag - HD VCP Bag | E82: 9.99 | F82: Express | G82: 0.5 | H82: 8.4 | I82: 8.9
A83: 2324 | B83: UT | C83: 121 | D83: Firebox Master Combo Kit | E83: 144.98 | F83: Regular | G83: 3 | H83: 3 | I83: 6
A84: 2328 | B84: MT | C84: 118 | D84: Firebox Deluxe Combo Kit | E84: 89.99 | F84: Express | G84: 2.5 | H84: 8.4 | I84: 10.9
A85: 2331 | B85: UT | C85: 109 | D85: Folding Campfire Stove | E85: 59.99 | F85: Regular | G85: 2.5 | H85: 3 | I85: 5.5
A86: 2353 | B86: CA | C86: 124 | D86: The Ugly Bag - HD VCP Bag | E86: 19.98 | F86: Express | G86: 1 | H86: 7.6 | I86: 8.6
A87: 2358 | B87: HI | C87: 109 | D87: Folding Campfire Stove | E87: 59.99 | F87: Express | G87: 2.5 | H87: 13.5 | I87: 16
A88: 2386 | B88: CO | C88: 123 | D88: Cordura D-Ring Bag | E88: 15.99 | F88: Regular | G88: 1 | H88: 5 | I88: 6
A89: 2393 | B89: CO | C89: 114 | D89: Cube Stove + 2 Fuel Disks | E89: 24.95 | F89: Express | G89: 1 | H89: 7.6 | I89: 8.6
A90: 2417 | B90: OR | C90: 109 | D90: Folding Campfire Stove | E90: 59.99 | F90: Overnite | G90: 2.5 | H90: 13.7 | I90: 16.2
A91: 2419 | B91: HI | C91: 123 | D91: Cordura D-Ring Bag | E91: 15.99 | F91: Regular | G91: 1 | H91: 8 | I91: 9
A92: 2423 | B92: AZ | C92: 124 | D92: The Ugly Bag - HD VCP Bag | E92: 29.3706 | F92: Overnite | G92: 1 | H92: 11.6 | I92: 12.6
A93: 2439 | B93: UT | C93: 117 | D93: Firebox Upgrade Kit | E93: 34.98 | F93: Overnite | G93: 2 | H93: 7.8 | I93: 9.8
A94: 2513 | B94: AZ | C94: 125 | D94: 3 Months Fuel with Stove | E94: 189.99 | F94: Overnite | G94: 3 | H94: 11.6 | I94: 14.6
A95: 2521 | B95: CA | C95: 125 | D95: 3 Months Fuel with Stove | E95: 189.99 | F95: Express | G95: 3 | H95: 7.6 | I95: 10.6
A96: 2527 | B96: CO | C96: 117 | D96: Firebox Upgrade Kit | E96: 34.98 | F96: Overnite | G96: 2 | H96: 11.6 | I96: 13.6
A97: 2605 | B97: CO | C97: 125 | D97: 3 Months Fuel with Stove | E97: 189.99 | F97: Express | G97: 3 | H97: 7.6 | I97: 10.6
A98: 2644 | B98: WA | C98: 128 | D98: Heavy Duty Cordura D-Ring Bag | E98: 15.99 | F98: Overnite | G98: 1 | H98: 13.7 | I98: 14.7
A99: 2653 | B99: OR | C99: 129 | D99: Stainless Steel Cup Charger | E99: 149.99 | F99: Overnite | G99: 3 | H99: 13.7 | I99: 16.7
A100: 2714 | B100: NV | C100: 117 | D100: Firebox Upgrade Kit | E100: 34.98 | F100: Overnite | G100: 2 | H100: 11.6 | I100: 13.6
A101: 2726 | B101: CA | C101: 127 | D101: Stainless Steel Cooking Pot | E101: 19.99 | F101: Overnite | G101: 1 | H101: 11.6 | I101: 12.6
A102: 2779 | B102: MT | C102: 109 | D102: Folding Campfire Stove | E102: 59.99 | F102: Express | G102: 2.5 | H102: 8.4 | I102: 10.9
A103: 2829 | B103: HI | C103: 132 | D103: Adjustable Fire Grate | E103: 7.99 | F103: Regular | G103: 0.5 | H103: 8 | I103: 8.5
A104: 2833 | B104: OR | C104: 132 | D104: Adjustable Fire Grate | E104: 7.99 | F104: Regular | G104: 0.5 | H104: 6 | I104: 6.5
A105: 2837 | B105: AZ | C105: 127 | D105: Stainless Steel Cooking Pot | E105: 19.99 | F105: Regular | G105: 1 | H105: 5 | I105: 6
A106: 2855 | B106: AZ | C106: 137 | D106: QuickStove Fire Starter | E106: 3.9 | F106: Express | G106: 0.5 | H106: 7.6 | I106: 8.1
A107: 2859 | B107: CA | C107: 132 | D107: Adjustable Fire Grate | E107: 39.151 | F107: Overnite | G107: 2 | H107: 11.6 | I107: 13.6
A108: 2865 | B108: CA | C108: 137 | D108: QuickStove Fire Starter | E108: 64.8375 | F108: Regular | G108: 2.5 | H108: 5 | I108: 7.5
A109: 2868 | B109: NV | C109: 132 | D109: Adjustable Fire Grate | E109: 7.99 | F109: Regular | G109: 0.5 | H109: 5 | I109: 5.5
A110: 2887 | B110: WA | C110: 123 | D110: Cordura D-Ring Bag | E110: 15.99 | F110: Overnite | G110: 1 | H110: 13.7 | I110: 14.7
A111: 2889 | B111: OR | C111: 133 | D111: Extended Grill Plate | E111: 9.99 | F111: Express | G111: 0.5 | H111: 8.4 | I111: 8.9
A112: 2896 | B112: WA | C112: 132 | D112: Adjustable Fire Grate | E112: 7.99 | F112: Regular | G112: 0.5 | H112: 6 | I112: 6.5
A113: 2903 | B113: WA | C113: 134 | D113: Set of 2 Fire Sticks | E113: 5.99 | F113: Overnite | G113: 0.5 | H113: 13.7 | I113: 14.2
A114: 2905 | B114: WA | C114: 139 | D114: Aluminum Matchbox | E114: 3.99 | F114: Overnite | G114: 0.5 | H114: 13.7 | I114: 14.2
A115: 2921 | B115: AZ | C115: 110 | D115: Firebox Bundle | E115: 87.75 | F115: Overnite | G115: 2.5 | H115: 11.6 | I115: 14.1
A116: 2928 | B116: MT | C116: 132 | D116: Adjustable Fire Grate | E116: 7.99 | F116: Express | G116: 0.5 | H116: 8.4 | I116: 8.9
A117: 2932 | B117: MT | C117: 150 | D117: Trangia Fuel Bottle - 0.3L | E117: 16.49 | F117: Express | G117: 1 | H117: 8.4 | I117: 9.4
A118: 2938 | B118: CA | C118: 138 | D118: Grill Plate | E118: 7.99 | F118: Overnite | G118: 0.5 | H118: 11.6 | I118: 12.1
A119: 2939 | B119: CO | C119: 132 | D119: Adjustable Fire Grate | E119: 7.99 | F119: Overnite | G119: 0.5 | H119: 11.6 | I119: 12.1
A120: 2979 | B120: OR | C120: 124 | D120: The Ugly Bag - HD VCP Bag | E120: 9.99 | F120: Overnite | G120: 0.5 | H120: 13.7 | I120: 14.2
A121: 2999 | B121: MT | C121: 133 | D121: Extended Grill Plate | E121: 9.99 | F121: Express | G121: 0.5 | H121: 8.4 | I121: 8.9
A122: 3005 | B122: MT | C122: 146 | D122: Olicamp Space Saver Cup | E122: 8.96 | F122: Regular | G122: 0.5 | H122: 6 | I122: 6.5
A123: 3034 | B123: MT | C123: 121 | D123: Firebox Master Combo Kit | E123: 144.98 | F123: Express | G123: 3 | H123: 8.4 | I123: 11.4
A124: 3043 | B124: UT | C124: 123 | D124: Cordura D-Ring Bag | E124: 15.99 | F124: Regular | G124: 1 | H124: 3 | I124: 4
A125: 3049 | B125: UT | C125: 132 | D125: Adjustable Fire Grate | E125: 7.99 | F125: Express | G125: 0.5 | H125: 4.7 | I125: 5.2
A126: 3069 | B126: CA | C126: 157 | D126: Nalgene Cantene 32 oz | E126: 11.49 | F126: Overnite | G126: 1 | H126: 11.6 | I126: 12.6
A127: 3079 | B127: CA | C127: 145 | D127: Cube Stove + 9 Fuel Disks | E127: 35.99 | F127: Express | G127: 2 | H127: 7.6 | I127: 9.6
A128: 3095 | B128: OR | C128: 134 | D128: Set of 2 Fire Sticks | E128: 11.98 | F128: Express | G128: 1 | H128: 8.4 | I128: 9.4
A129: 3111 | B129: AZ | C129: 136 | D129: Boil Plate | E129: 7.99 | F129: Express | G129: 0.5 | H129: 7.6 | I129: 8.1
A130: 3233 | B130: CA | C130: 144 | D130: Trangia Spirit Burner | E130: 14.99 | F130: Regular | G130: 1 | H130: 5 | I130: 6
A131: 3246 | B131: WA | C131: 146 | D131: Olicamp Space Saver Cup | E131: 8.96 | F131: Express | G131: 0.5 | H131: 8.4 | I131: 8.9
A132: 3265 | B132: AZ | C132: 144 | D132: Trangia Spirit Burner | E132: 14.99 | F132: Overnite | G132: 1 | H132: 11.6 | I132: 12.6
A133: 3324 | B133: UT | C133: 124 | D133: The Ugly Bag - HD VCP Bag | E133: 9.99 | F133: Regular | G133: 0.5 | H133: 3 | I133: 3.5
A134: 3330 | B134: WA | C134: 163 | D134: Klean Kanteen Wide 40 oz | E134: 25.16 | F134: Express | G134: 1 | H134: 8.4 | I134: 9.4
A135: 3345 | B135: CA | C135: 163 | D135: Klean Kanteen Wide 40 oz | E135: 25.16 | F135: Overnite | G135: 1 | H135: 11.6 | I135: 12.6
A136: 3352 | B136: CO | C136: 161 | D136: Olicamp Pot Lifter | E136: 4.95 | F136: Overnite | G136: 0.5 | H136: 11.6 | I136: 12.1
A137: 3357 | B137: CA | C137: 136 | D137: Boil Plate | E137: 7.99 | F137: Express | G137: 0.5 | H137: 7.6 | I137: 8.1
A138: 3360 | B138: CO | C138: 134 | D138: Set of 2 Fire Sticks | E138: 5.99 | F138: Regular | G138: 0.5 | H138: 5 | I138: 5.5
A139: 3374 | B139: CA | C139: 168 | D139: Blue Bag | E139: 4.99 | F139: Overnite | G139: 0.5 | H139: 11.6 | I139: 12.1
A140: 3377 | B140: AZ | C140: 150 | D140: Trangia Fuel Bottle - 0.3L | E140: 16.49 | F140: Regular | G140: =VLOOKUP(E140,$K$11:$L$18,2) -> 1 | H140: =HLOOKUP(B140,$E$5:$N$8,IF(F140=$E$6,2,IF(F140=$E$7,3,4)),FALSE) -> 5 | I140: =G140+H140 -> 6
A141: 3381 | B141: OR | C141: 150 | D141: Trangia Fuel Bottle - 0.3L | E141: 16.49 | F141: Overnite | G141: 1 | H141: 13.7 | I141: 14.7
A142: 3394 | B142: UT | C142: 129 | D142: Stainless Steel Cup Charger | E142: 149.99 | F142: Regular | G142: 3 | H142: 3 | I142: 6
A143: 3403 | B143: CO | C143: 128 | D143: Heavy Duty Cordura D-Ring Bag | E143: 31.98 | F143: Overnite | G143: 2 | H143: 11.6 | I143: 13.6
A144: 3404 | B144: CA | C144: 146 | D144: Olicamp Space Saver Cup | E144: 8.96 | F144: Regular | G144: 0.5 | H144: 5 | I144: 5.5
A145: 3429 | B145: OR | C145: 171 | D145: Power Bank with Flashlight | E145: 14.99 | F145: Regular | G145: 1 | H145: 6 | I145: 7
A146: 3430 | B146: HI | C146: 128 | D146: Heavy Duty Cordura D-Ring Bag | E146: 31.98 | F146: Overnite | G146: 2 | H146: 17.1 | I146: 19.1
A147: 3441 | B147: HI | C147: 121 | D147: Firebox Master Combo Kit | E147: 144.98 | F147: Express | G147: 3 | H147: 13.5 | I147: 16.5
A148: 3446 | B148: HI | C148: 133 | D148: Extended Grill Plate | E148: 9.99 | F148: Overnite | G148: 0.5 | H148: 17.1 | I148: 17.6
A149: 3464 | B149: OR | C149: 127 | D149: Stainless Steel Cooking Pot | E149: 19.99 | F149: Regular | G149: 1 | H149: 6 | I149: 7
A150: 3485 | B150: AZ | C150: 130 | D150: Emergency Cook Kit | E150: 25 | F150: Express | G150: 1 | H150: 7.6 | I150: 8.6
A151: 3539 | B151: CA | C151: 139 | D151: Aluminum Matchbox | E151: 7.98 | F151: Overnite | G151: 0.5 | H151: 11.6 | I151: 12.1
A152: 3546 | B152: UT | C152: 128 | D152: Heavy Duty Cordura D-Ring Bag | E152: 15.99 | F152: Overnite | G152: 1 | H152: 7.8 | I152: 8.8
A153: 3554 | B153: HI | C153: 134 | D153: Set of 2 Fire Sticks | E153: 5.99 | F153: Regular | G153: 0.5 | H153: 8 | I153: 8.5
A154: 3585 | B154: NV | C154: 127 | D154: Stainless Steel Cooking Pot | E154: 19.99 | F154: Overnite | G154: 1 | H154: 11.6 | I154: 12.6
A155: 3616 | B155: CA | C155: 175 | D155: Folding Firebox Nano | E155: 29.99 | F155: Express | G155: 1 | H155: 7.6 | I155: 8.6
A156: 3618 | B156: OR | C156: 143 | D156: Trangia Fuel Bottle - 0.5L | E156: 15.29 | F156: Overnite | G156: 1 | H156: 13.7 | I156: 14.7
A157: 3653 | B157: CA | C157: 120 | D157: Master Combo Kit | E157: 144.98 | F157: Express | G157: 3 | H157: 7.6 | I157: 10.6
A158: 3663 | B158: CA | C158: 154 | D158: Deluxe Combo Kit | E158: 89.99 | F158: Express | G158: 2.5 | H158: 7.6 | I158: 10.1
A159: 3702 | B159: CA | C159: 171 | D159: Power Bank with Flashlight | E159: 14.99 | F159: Overnite | G159: 1 | H159: 11.6 | I159: 12.6
A160: 3718 | B160: CA | C160: 176 | D160: Firebox Accessory Kit | E160: 31.48 | F160: Express | G160: 2 | H160: 7.6 | I160: 9.6
A161: 3800 | B161: MT | C161: 168 | D161: Blue Bag | E161: 4.99 | F161: Express | G161: 0.5 | H161: 8.4 | I161: 8.9

Sheet Conditional Functions
B2: Looking at shipments, at employee performance, and at services required by customers; Quickstove managment performs several analyses.
A6: OrderID | B6: Ship To | C6: ProductID | D6: Product Name | E6: Ship Class | F6: Value | G6: Employee | J6: Shipments by Employee
A7: 1003 | B7: AZ | C7: 100 | D7: QuickStove | E7: Express | F7: 68.796 | G7: Merrill | J7: Count | K7: Total Value | L7: Average Value
A8: 1004 | B8: WA | C8: 100 | D8: QuickStove | E8: Express | F8: 85.995 | G8: George | I8: Merrill | J8: =COUNTIF($G$7:$G$157,I8) -> 58 | K8: =SUMIF($G$7:$G$157,I8,$F$7:$F$157) -> 3027.3442 | L8: =AVERAGEIF($G$7:$G$157,I8,$F$7:$F$157) -> 52.19558966
A9: 1007 | B9: NV | C9: 100 | D9: QuickStove | E9: Regular | F9: 120.393 | G9: George | I9: Frank | J9: =COUNTIF($G$7:$G$157,I9) -> 32 | K9: =SUMIF($G$7:$G$157,I9,$F$7:$F$157) -> 2098.4032 | L9: =AVERAGEIF($G$7:$G$157,I9,$F$7:$F$157) -> 65.5751
A10: 1011 | B10: UT | C10: 100 | D10: QuickStove | E10: Express | F10: 120.393 | G10: Merrill | I10: George | J10: 43 | K10: 2003.2591 | L10: 46.58742093
A11: 1027 | B11: CA | C11: 100 | D11: QuickStove | E11: Overnite | F11: 17.55 | G11: Frank | I11: Howard | J11: 18 | K11: 793.848 | L11: =AVERAGEIF($G$7:$G$157,I11,$F$7:$F$157) -> 44.10266667
A12: 1041 | B12: MT | C12: 102 | D12: Replacement Fuel Cells | E12: Overnite | F12: 4 | G12: Frank | I12: All | J12: =COUNTA(G7:G157) -> 151 | K12: =SUM(F7:F157) -> 7922.8545 | L12: =AVERAGE(F7:F157) -> 52.4692351
A13: 1042 | B13: CA | C13: 104 | D13: Quick Stove Can | E13: Overnite | F13: 69.98 | G13: George
A14: 1050 | B14: OR | C14: 104 | D14: Quick Stove Can | E14: Overnite | F14: 274.3216 | G14: Frank
A15: 1058 | B15: UT | C15: 104 | D15: Quick Stove Can | E15: Express | F15: 274.3216 | G15: Frank | J15: Shipments by Shipping Class
A16: 1059 | B16: AZ | C16: 102 | D16: Replacement Fuel Cells | E16: Regular | F16: 15.68 | G16: Frank | J16: Count | K16: Total Value | L16: Average Value
A17: 1060 | B17: WA | C17: 104 | D17: Quick Stove Can | E17: Overnite | F17: 69.98 | G17: George | I17: Regular | J17: =COUNTIF($E$7:$E$157,I17) -> 42 | K17: =SUMIF($E$7:$E$157,I17,$F$7:$F$157) -> 2216.0071 | L17: =AVERAGEIF($E$7:$E$157,I17,$F$7:$F$157) -> 52.76207381
A18: 1062 | B18: UT | C18: 102 | D18: Replacement Fuel Cells | E18: Regular | F18: 60.8 | G18: George | I18: Express | J18: =COUNTIF($E$7:$E$157,I18) -> 47 | K18: =SUMIF($E$7:$E$157,I18,$F$7:$F$157) -> 2703.3296 | L18: =AVERAGEIF($E$7:$E$157,I18,$F$7:$F$157) -> 57.51765106
A19: 1073 | B19: CO | C19: 104 | D19: Quick Stove Can | E19: Overnite | F19: 34.99 | G19: Merrill | I19: Overnite | J19: 62 | K19: 3003.5178 | L19: 48.44383548
A20: 1074 | B20: CO | C20: 102 | D20: Replacement Fuel Cells | E20: Overnite | F20: 19.6 | G20: George
A21: 1088 | B21: WA | C21: 102 | D21: Replacement Fuel Cells | E21: Overnite | F21: 4 | G21: Frank
A22: 1094 | B22: NV | C22: 102 | D22: Replacement Fuel Cells | E22: Express | F22: 8 | G22: George
A23: 1109 | B23: HI | C23: 102 | D23: Replacement Fuel Cells | E23: Express | F23: 8 | G23: Howard
A24: 1120 | B24: OR | C24: 102 | D24: Replacement Fuel Cells | E24: Express | F24: 38 | G24: George
A25: 1255 | B25: OR | C25: 106 | D25: Stove In A Can | E25: Overnite | F25: 34.99 | G25: George
A26: 1262 | B26: UT | C26: 106 | D26: Stove In A Can | E26: Regular | F26: 102.8706 | G26: Merrill
A27: 1265 | B27: WA | C27: 106 | D27: Stove In A Can | E27: Express | F27: 34.99 | G27: Merrill
A28: 1267 | B28: CA | C28: 106 | D28: Stove In A Can | E28: Overnite | F28: 102.8706 | G28: Merrill
A29: 1268 | B29: MT | C29: 106 | D29: Stove In A Can | E29: Regular | F29: 34.99 | G29: Merrill
A30: 1364 | B30: AZ | C30: 106 | D30: Stove In A Can | E30: Regular | F30: 398.886 | G30: Frank
A31: 1417 | B31: UT | C31: 108 | D31: QuickStove Fuel Disk | E31: Overnite | F31: 37.848 | G31: George
A32: 1629 | B32: CA | C32: 107 | D32: SIAC Fuel Cell | E32: Express | F32: 10 | G32: George
A33: 1635 | B33: CO | C33: 106 | D33: Stove In A Can | E33: Express | F33: 69.98 | G33: Merrill
A34: 1661 | B34: AZ | C34: 107 | D34: SIAC Fuel Cell | E34: Regular | F34: 47.5 | G34: Merrill
A35: 1666 | B35: OR | C35: 107 | D35: SIAC Fuel Cell | E35: Express | F35: 19.6 | G35: Merrill
A36: 1677 | B36: WA | C36: 108 | D36: QuickStove Fuel Disk | E36: Express | F36: 31.54 | G36: Frank
A37: 1686 | B37: CA | C37: 101 | D37: QuickStove Can | E37: Overnite | F37: 19.95 | G37: Frank
A38: 1701 | B38: CO | C38: 101 | D38: QuickStove Can | E38: Overnite | F38: 19.95 | G38: Merrill
A39: 1708 | B39: AZ | C39: 101 | D39: QuickStove Can | E39: Overnite | F39: 19.95 | G39: Merrill
A40: 1712 | B40: AZ | C40: 108 | D40: QuickStove Fuel Disk | E40: Express | F40: 47.31 | G40: Frank
A41: 1718 | B41: OR | C41: 101 | D41: QuickStove Can | E41: Overnite | F41: 39.9 | G41: Merrill
A42: 1720 | B42: UT | C42: 101 | D42: QuickStove Can | E42: Overnite | F42: 78.204 | G42: George
A43: 1725 | B43: WA | C43: 101 | D43: QuickStove Can | E43: Express | F43: 78.204 | G43: Frank
A44: 1733 | B44: CA | C44: 110 | D44: Firebox Bundle | E44: Regular | F44: 175.5 | G44: Merrill
A45: 1746 | B45: CO | C45: 110 | D45: Firebox Bundle | E45: Express | F45: 87.75 | G45: George
A46: 1748 | B46: NV | C46: 101 | D46: QuickStove Can | E46: Overnite | F46: 78.204 | G46: Howard
A47: 1776 | B47: MT | C47: 101 | D47: QuickStove Can | E47: Overnite | F47: 78.204 | G47: Merrill
A48: 1797 | B48: WA | C48: 114 | D48: Cube Stove + 2 Fuel Disks | E48: Express | F48: 49.9 | G48: George
A49: 1814 | B49: AZ | C49: 114 | D49: Cube Stove + 2 Fuel Disks | E49: Regular | F49: 24.95 | G49: Frank
A50: 1834 | B50: CO | C50: 113 | D50: Firebox Stove w/ Fuel | E50: Overnite | F50: 49.95 | G50: Merrill
A51: 1835 | B51: CA | C51: 113 | D51: Firebox Stove w/ Fuel | E51: Overnite | F51: 49.95 | G51: George
A52: 1839 | B52: CA | C52: 114 | D52: Cube Stove + 2 Fuel Disks | E52: Express | F52: 49.9 | G52: Merrill
A53: 1842 | B53: MT | C53: 108 | D53: QuickStove Fuel Disk | E53: Overnite | F53: 18.924 | G53: Howard
A54: 1873 | B54: CA | C54: 109 | D54: Folding Campfire Stove | E54: Regular | F54: 59.99 | G54: Merrill
A55: 1877 | B55: CA | C55: 121 | D55: Firebox Master Combo Kit | E55: Overnite | F55: 144.98 | G55: George
A56: 1897 | B56: NV | C56: 118 | D56: Firebox Deluxe Combo Kit | E56: Regular | F56: 89.99 | G56: George
A57: 1913 | B57: AZ | C57: 118 | D57: Firebox Deluxe Combo Kit | E57: Regular | F57: 89.99 | G57: George
A58: 1923 | B58: WA | C58: 109 | D58: Folding Campfire Stove | E58: Regular | F58: 59.99 | G58: Frank
A59: 1946 | B59: WA | C59: 118 | D59: Firebox Deluxe Combo Kit | E59: Overnite | F59: 89.99 | G59: Merrill
A60: 1964 | B60: AZ | C60: 109 | D60: Folding Campfire Stove | E60: Express | F60: 59.99 | G60: George
A61: 1979 | B61: HI | C61: 118 | D61: Firebox Deluxe Combo Kit | E61: Overnite | F61: 89.99 | G61: Frank
A62: 1982 | B62: CA | C62: 118 | D62: Firebox Deluxe Combo Kit | E62: Overnite | F62: 89.99 | G62: Merrill
A63: 1990 | B63: CO | C63: 109 | D63: Folding Campfire Stove | E63: Regular | F63: 59.99 | G63: Frank
A64: 2000 | B64: WA | C64: 121 | D64: Firebox Master Combo Kit | E64: Express | F64: 144.98 | G64: George
A65: 2031 | B65: CA | C65: 117 | D65: Firebox Upgrade Kit | E65: Overnite | F65: 69.96 | G65: Merrill
A66: 2078 | B66: AZ | C66: 117 | D66: Firebox Upgrade Kit | E66: Overnite | F66: 34.98 | G66: Howard
A67: 2093 | B67: AZ | C67: 121 | D67: Firebox Master Combo Kit | E67: Overnite | F67: 144.98 | G67: Frank
A68: 2136 | B68: NV | C68: 109 | D68: Folding Campfire Stove | E68: Overnite | F68: 59.99 | G68: Frank
A69: 2146 | B69: CO | C69: 118 | D69: Firebox Deluxe Combo Kit | E69: Regular | F69: 89.99 | G69: Merrill
A70: 2168 | B70: NV | C70: 108 | D70: QuickStove Fuel Disk | E70: Regular | F70: 31.54 | G70: Merrill
A71: 2198 | B71: UT | C71: 114 | D71: Cube Stove + 2 Fuel Disks | E71: Regular | F71: 24.95 | G71: Merrill
A72: 2202 | B72: AZ | C72: 123 | D72: Cordura D-Ring Bag | E72: Regular | F72: 15.99 | G72: George
A73: 2217 | B73: WA | C73: 117 | D73: Firebox Upgrade Kit | E73: Regular | F73: 34.98 | G73: Frank
A74: 2218 | B74: OR | C74: 118 | D74: Firebox Deluxe Combo Kit | E74: Overnite | F74: 89.99 | G74: Merrill
A75: 2249 | B75: OR | C75: 117 | D75: Firebox Upgrade Kit | E75: Regular | F75: 34.98 | G75: Howard
A76: 2258 | B76: CA | C76: 123 | D76: Cordura D-Ring Bag | E76: Regular | F76: 15.99 | G76: George
A77: 2283 | B77: UT | C77: 118 | D77: Firebox Deluxe Combo Kit | E77: Overnite | F77: 89.99 | G77: Howard
A78: 2319 | B78: WA | C78: 124 | D78: The Ugly Bag - HD VCP Bag | E78: Express | F78: 9.99 | G78: Merrill
A79: 2324 | B79: UT | C79: 121 | D79: Firebox Master Combo Kit | E79: Regular | F79: 144.98 | G79: George
A80: 2328 | B80: MT | C80: 118 | D80: Firebox Deluxe Combo Kit | E80: Express | F80: 89.99 | G80: Frank
A81: 2331 | B81: UT | C81: 109 | D81: Folding Campfire Stove | E81: Regular | F81: 59.99 | G81: George
A82: 2353 | B82: CA | C82: 124 | D82: The Ugly Bag - HD VCP Bag | E82: Express | F82: 19.98 | G82: Merrill
A83: 2358 | B83: HI | C83: 109 | D83: Folding Campfire Stove | E83: Express | F83: 59.99 | G83: George
A84: 2386 | B84: CO | C84: 123 | D84: Cordura D-Ring Bag | E84: Regular | F84: 15.99 | G84: George
A85: 2393 | B85: CO | C85: 114 | D85: Cube Stove + 2 Fuel Disks | E85: Express | F85: 24.95 | G85: Frank
A86: 2417 | B86: OR | C86: 109 | D86: Folding Campfire Stove | E86: Overnite | F86: 59.99 | G86: Merrill
A87: 2419 | B87: HI | C87: 123 | D87: Cordura D-Ring Bag | E87: Regular | F87: 15.99 | G87: George
A88: 2423 | B88: AZ | C88: 124 | D88: The Ugly Bag - HD VCP Bag | E88: Overnite | F88: 29.3706 | G88: George
A89: 2439 | B89: UT | C89: 117 | D89: Firebox Upgrade Kit | E89: Overnite | F89: 34.98 | G89: Merrill
A90: 2513 | B90: AZ | C90: 125 | D90: 3 Months Fuel with Stove | E90: Overnite | F90: 189.99 | G90: Merrill
A91: 2521 | B91: CA | C91: 125 | D91: 3 Months Fuel with Stove | E91: Express | F91: 189.99 | G91: Merrill
A92: 2527 | B92: CO | C92: 117 | D92: Firebox Upgrade Kit | E92: Overnite | F92: 34.98 | G92: Merrill
A93: 2605 | B93: CO | C93: 125 | D93: 3 Months Fuel with Stove | E93: Express | F93: 189.99 | G93: Merrill
A94: 2644 | B94: WA | C94: 128 | D94: Heavy Duty Cordura D-Ring Bag | E94: Overnite | F94: 15.99 | G94: George
A95: 2653 | B95: OR | C95: 129 | D95: Stainless Steel Cup Charger | E95: Overnite | F95: 149.99 | G95: Howard
A96: 2714 | B96: NV | C96: 117 | D96: Firebox Upgrade Kit | E96: Overnite | F96: 34.98 | G96: Frank
A97: 2726 | B97: CA | C97: 127 | D97: Stainless Steel Cooking Pot | E97: Overnite | F97: 19.99 | G97: George
A98: 2779 | B98: MT | C98: 109 | D98: Folding Campfire Stove | E98: Express | F98: 59.99 | G98: Merrill
A99: 2829 | B99: HI | C99: 132 | D99: Adjustable Fire Grate | E99: Regular | F99: 7.99 | G99: Merrill
A100: 2833 | B100: OR | C100: 132 | D100: Adjustable Fire Grate | E100: Regular | F100: 7.99 | G100: Howard
A101: 2837 | B101: AZ | C101: 127 | D101: Stainless Steel Cooking Pot | E101: Regular | F101: 19.99 | G101: Howard
A102: 2855 | B102: AZ | C102: 137 | D102: QuickStove Fire Starter | E102: Express | F102: 3.9 | G102: Merrill
A103: 2859 | B103: CA | C103: 132 | D103: Adjustable Fire Grate | E103: Overnite | F103: 39.151 | G103: George
A104: 2865 | B104: CA | C104: 137 | D104: QuickStove Fire Starter | E104: Regular | F104: 64.8375 | G104: George
A105: 2868 | B105: NV | C105: 132 | D105: Adjustable Fire Grate | E105: Regular | F105: 7.99 | G105: George
A106: 2887 | B106: WA | C106: 123 | D106: Cordura D-Ring Bag | E106: Overnite | F106: 15.99 | G106: Merrill
A107: 2889 | B107: OR | C107: 133 | D107: Extended Grill Plate | E107: Express | F107: 9.99 | G107: Frank
A108: 2896 | B108: WA | C108: 132 | D108: Adjustable Fire Grate | E108: Regular | F108: 7.99 | G108: Merrill
A109: 2903 | B109: WA | C109: 134 | D109: Set of 2 Fire Sticks | E109: Overnite | F109: 5.99 | G109: George
A110: 2905 | B110: WA | C110: 139 | D110: Aluminum Matchbox | E110: Overnite | F110: 3.99 | G110: Frank
A111: 2921 | B111: AZ | C111: 110 | D111: Firebox Bundle | E111: Overnite | F111: 87.75 | G111: Howard
A112: 2928 | B112: MT | C112: 132 | D112: Adjustable Fire Grate | E112: Express | F112: 7.99 | G112: Frank
A113: 2932 | B113: MT | C113: 150 | D113: Trangia Fuel Bottle - 0.3L | E113: Express | F113: 16.49 | G113: George
A114: 2938 | B114: CA | C114: 138 | D114: Grill Plate | E114: Overnite | F114: 7.99 | G114: Frank
A115: 2939 | B115: CO | C115: 132 | D115: Adjustable Fire Grate | E115: Overnite | F115: 7.99 | G115: George
A116: 2979 | B116: OR | C116: 124 | D116: The Ugly Bag - HD VCP Bag | E116: Overnite | F116: 9.99 | G116: Merrill
A117: 2999 | B117: MT | C117: 133 | D117: Extended Grill Plate | E117: Express | F117: 9.99 | G117: Merrill
A118: 3005 | B118: MT | C118: 146 | D118: Olicamp Space Saver Cup | E118: Regular | F118: 8.96 | G118: Howard
A119: 3034 | B119: MT | C119: 121 | D119: Firebox Master Combo Kit | E119: Express | F119: 144.98 | G119: Merrill
A120: 3043 | B120: UT | C120: 123 | D120: Cordura D-Ring Bag | E120: Regular | F120: 15.99 | G120: Merrill
A121: 3049 | B121: UT | C121: 132 | D121: Adjustable Fire Grate | E121: Express | F121: 7.99 | G121: George
A122: 3069 | B122: CA | C122: 157 | D122: Nalgene Cantene 32 oz | E122: Overnite | F122: 11.49 | G122: Merrill
A123: 3079 | B123: CA | C123: 145 | D123: Cube Stove + 9 Fuel Disks | E123: Express | F123: 35.99 | G123: Howard
A124: 3095 | B124: OR | C124: 134 | D124: Set of 2 Fire Sticks | E124: Express | F124: 11.98 | G124: Merrill
A125: 3111 | B125: AZ | C125: 136 | D125: Boil Plate | E125: Express | F125: 7.99 | G125: Merrill
A126: 3233 | B126: CA | C126: 144 | D126: Trangia Spirit Burner | E126: Regular | F126: 14.99 | G126: George
A127: 3246 | B127: WA | C127: 146 | D127: Olicamp Space Saver Cup | E127: Express | F127: 8.96 | G127: Merrill
A128: 3265 | B128: AZ | C128: 144 | D128: Trangia Spirit Burner | E128: Overnite | F128: 14.99 | G128: Frank
A129: 3324 | B129: UT | C129: 124 | D129: The Ugly Bag - HD VCP Bag | E129: Regular | F129: 9.99 | G129: Merrill
A130: 3330 | B130: WA | C130: 163 | D130: Klean Kanteen Wide 40 oz | E130: Express | F130: 25.16 | G130: Howard
A131: 3345 | B131: CA | C131: 163 | D131: Klean Kanteen Wide 40 oz | E131: Overnite | F131: 25.16 | G131: Merrill
A132: 3352 | B132: CO | C132: 161 | D132: Olicamp Pot Lifter | E132: Overnite | F132: 4.95 | G132: Merrill
A133: 3357 | B133: CA | C133: 136 | D133: Boil Plate | E133: Express | F133: 7.99 | G133: Howard
A134: 3360 | B134: CO | C134: 134 | D134: Set of 2 Fire Sticks | E134: Regular | F134: 5.99 | G134: Merrill
A135: 3374 | B135: CA | C135: 168 | D135: Blue Bag | E135: Overnite | F135: 4.99 | G135: Merrill
A136: 3377 | B136: AZ | C136: 150 | D136: Trangia Fuel Bottle - 0.3L | E136: Regular | F136: 16.49 | G136: Frank
A137: 3381 | B137: OR | C137: 150 | D137: Trangia Fuel Bottle - 0.3L | E137: Overnite | F137: 16.49 | G137: Merrill
A138: 3394 | B138: UT | C138: 129 | D138: Stainless Steel Cup Charger | E138: Regular | F138: 149.99 | G138: Merrill
A139: 3403 | B139: CO | C139: 128 | D139: Heavy Duty Cordura D-Ring Bag | E139: Overnite | F139: 31.98 | G139: Frank
A140: 3404 | B140: CA | C140: 146 | D140: Olicamp Space Saver Cup | E140: Regular | F140: 8.96 | G140: Merrill
A141: 3429 | B141: OR | C141: 171 | D141: Power Bank with Flashlight | E141: Regular | F141: 14.99 | G141: Howard
A142: 3430 | B142: HI | C142: 128 | D142: Heavy Duty Cordura D-Ring Bag | E142: Overnite | F142: 31.98 | G142: George
A143: 3441 | B143: HI | C143: 121 | D143: Firebox Master Combo Kit | E143: Express | F143: 144.98 | G143: Howard
A144: 3446 | B144: HI | C144: 133 | D144: Extended Grill Plate | E144: Overnite | F144: 9.99 | G144: George
A145: 3464 | B145: OR | C145: 127 | D145: Stainless Steel Cooking Pot | E145: Regular | F145: 19.99 | G145: George
A146: 3485 | B146: AZ | C146: 130 | D146: Emergency Cook Kit | E146: Express | F146: 25 | G146: Merrill
A147: 3539 | B147: CA | C147: 139 | D147: Aluminum Matchbox | E147: Overnite | F147: 7.98 | G147: Frank
A148: 3546 | B148: UT | C148: 128 | D148: Heavy Duty Cordura D-Ring Bag | E148: Overnite | F148: 15.99 | G148: Merrill
A149: 3554 | B149: HI | C149: 134 | D149: Set of 2 Fire Sticks | E149: Regular | F149: 5.99 | G149: Merrill
A150: 3585 | B150: NV | C150: 127 | D150: Stainless Steel Cooking Pot | E150: Overnite | F150: 19.99 | G150: Howard
A151: 3616 | B151: CA | C151: 175 | D151: Folding Firebox Nano | E151: Express | F151: 29.99 | G151: Frank
A152: 3618 | B152: OR | C152: 143 | D152: Trangia Fuel Bottle - 0.5L | E152: Overnite | F152: 15.29 | G152: George
A153: 3653 | B153: CA | C153: 120 | D153: Master Combo Kit | E153: Express | F153: 144.98 | G153: Frank
A154: 3663 | B154: CA | C154: 154 | D154: Deluxe Combo Kit | E154: Express | F154: 89.99 | G154: Merrill
A155: 3702 | B155: CA | C155: 171 | D155: Power Bank with Flashlight | E155: Overnite | F155: 14.99 | G155: George
A156: 3718 | B156: CA | C156: 176 | D156: Firebox Accessory Kit | E156: Express | F156: 31.48 | G156: Frank
A157: 3800 | B157: MT | C157: 168 | D157: Blue Bag | E157: Express | F157: 4.99 | G157: Howard
